bitfinex-derivatives/quotes_SOLF0:USTF0_20250730
["timestamp","ask_amount","ask_price","bid_price","bid_amount"]
[1753863083834,3.13,180.78,180.76,5.5323]
[1753863084036,3.13,180.78,180.75,121.88721375]
[1753863084631,3.13,180.78,180.76,5.5325]
[1753863084832,3.1,180.83,180.71,202.94268365]
[1753863085034,3.1,180.81,180.72,121.30721375]
[1753863085430,3.1,180.81,180.74,2.72721375]
[1753863085830,3.1,180.8,180.76,5.5322]
[1753863086534,3.1,180.8,180.77,5.5319]
[1753863087233,3.1,180.79,180.76,5.5324]
[1753863087434,3.1,180.79,180.74,2.72721375]
[1753863087930,8.6316,180.79,180.75,5.5325]
[1753863088137,3.1,180.78,180.74,2.72721375]
[1753863088836,3.1,180.78,180.75,5.5327]
[1753863089231,3.1,180.78,180.72,121.30721375]
[1753863089631,3.1,180.78,180.72,118.58]
[1753863089934,3.1,180.75,180.72,124.1135]
[1753863090135,3.1,180.75,180.72,118.58]
[1753863090740,3.1,180.78,180.72,121.30721375]
[1753863091238,3.1,180.77,180.73,5.5332]
[1753863091439,3.1,180.77,180.72,121.30721375]
[1753863091738,3.1,180.77,180.72,118.58]
[1753863092339,3.1,180.74,180.71,208.47648365]
[1753863092536,3.1,180.74,180.68,2.72721375]
[1753863092833,3.1,180.73,180.69,118.52]
[1753863093237,3.1,180.73,180.7,5.5343]
[1753863093644,3.1,180.73,180.69,124.0545]
[1753863093936,2.72721375,180.75,180.69,118.52]
[1753863094139,3.1,180.74,180.69,118.52]
[1753863094341,3.1,180.72,180.61,12.2828997]
[1753863094536,2.72721375,180.71,180.62,118.5]
[1753863094737,3.1,180.7,180.64,5.5361]
[1753863094937,3.1,180.68,180.64,5.5361]
[1753863095442,3.1,180.68,180.63,118.74]
[1753863095844,3.1,180.68,180.65,5.5357]
[1753863096237,3.1,180.68,180.6,15.01011345]
[1753863096444,3.1,180.68,180.61,118.72]
[1753863097150,5.5353,180.67,180.62,5.5367]
[1753863097446,3.1,180.66,180.61,118.72]
[1753863098146,3.1,180.66,180.63,5.5362]
[1753863099341,3.1,180.66,180.62,5.5367]
[1753863099947,3.1,180.66,180.61,118.72]
[1753863101840,3.1,180.66,180.64,5.5361]
[1753863102553,3.1,180.66,180.63,5.5364]
[1753863103946,3.1,180.66,180.61,118.72]
[1753863104148,3.1,180.66,180.58,2.72721375]
[1753863104346,2.72721375,180.72,180.52,11.0792]
[1753863104347,3.1,180.63,180.56,118.66]
[1753863104546,3.1,180.63,180.56,121.38721375]
[1753863104747,5.537,180.62,180.57,5.5382]
[1753863105049,3.1,180.61,180.57,5.5382]
[1753863105250,3.1,180.62,180.56,118.66]
[1753863105853,5.5376,180.6,180.56,118.66]
[1753863106054,3.1,180.6,180.56,118.66]
[1753863106450,8.6374,180.6,180.56,118.66]
[1753863106656,3.1,180.6,180.56,118.66]
[1753863106954,3.1,180.6,180.53,2.72721375]
[1753863107153,3.1,180.59,180.55,5.5389]
[1753863109653,3.1,180.58,180.55,5.5389]
[1753863109860,3.1,180.58,180.51,118.66]
[1753863110349,5.538,180.58,180.53,5.5393]
[1753863110550,3.1,180.57,180.53,5.5393]
[1753863111355,3.1,180.57,180.51,118.66]
[1753863111356,3.04,180.58,180.54,5.5392]
[1753863111958,3.04,180.58,180.52,5.5396]
[1753863112160,3.04,180.58,180.51,118.66]
[1753863112462,5.538,180.58,180.53,5.5395]
[1753863112663,3.04,180.57,180.53,5.5395]
[1753863113162,3.04,180.57,180.54,5.5392]
[1753863113860,3.04,180.57,180.51,118.66]
[1753863114259,5.5385,180.57,180.52,5.5396]
[1753863114460,5.5385,180.57,180.49,121.36721375]
[1753863114461,3.04,180.56,180.49,121.36721375]
[1753863115155,8.5787,180.56,180.52,5.5396]
[1753863115359,3.04,180.55,180.52,5.5396]
[1753863117257,3.04,180.55,180.49,121.36721375]
[1753863117455,3.04,180.58,180.49,121.36721375]
[1753863117659,3.04,180.58,180.53,5.5395]
[1753863118760,3.04,180.56,180.53,5.5395]
[1753863120369,3.04,180.56,180.52,5.5397]
[1753863121066,3.04,180.55,180.52,5.5397]
[1753863121255,3.04,180.55,180.53,5.5395]
[1753863121661,2.72721375,180.59,180.51,2.72721375]
[1753863121862,3.04,180.6,180.53,2.72721375]
[1753863122266,3.04,180.58,180.53,2.72721375]
[1753863122763,8.578,180.58,180.53,2.72721375]
[1753863122962,3.04,180.6,180.53,2.72721375]
[1753863123365,3.04,180.57,180.53,2.72721375]
[1753863123767,3.04,180.57,180.5,2.72721375]
[1753863123967,5.76721375,180.57,180.5,2.72721375]
[1753863124167,3.04,180.56,180.5,2.72721375]
[1753863124360,3.04,180.53,180.5,8.26741375]
[1753863124762,8.5795,180.53,180.49,118.64]
[1753863124960,3.04,180.51,180.49,118.64]
[1753863125363,3.04,180.51,180.5,5.5402]
[1753863125562,3.04,180.52,180.49,121.36721375]
[1753863125764,3.04,180.58,180.51,2.72721375]
[1753863125964,2.72721375,180.57,180.49,121.36721375]
[1753863126165,3.04,180.56,180.49,121.36721375]
[1753863126365,5.5398,180.53,180.49,126.90781375]
[1753863126570,3.04,180.52,180.49,126.90781375]
[1753863126970,3.04,180.52,180.5,5.5404]
[1753863127165,2.72721375,180.57,180.49,121.36721375]
[1753863127372,3.04,180.56,180.49,121.36721375]
[1753863127674,3.04,180.56,180.52,5.5397]
[1753863127860,3.04,180.56,180.49,121.36721375]
[1753863128264,5.5397,180.53,180.49,124.1805]
[1753863128570,3.04,180.52,180.49,124.1805]
[1753863129167,5.5397,180.53,180.49,124.1805]
[1753863129368,3.04,180.52,180.49,118.64]
[1753863129567,3.04,180.51,180.49,118.64]
[1753863129868,3.04,180.5,180.49,118.64]
[1753863130070,3.04,180.5,180.49,124.1807]
[1753863130374,3.04,180.56,180.49,118.64]
[1753863130567,3.04,180.53,180.5,5.5402]
[1753863130870,3.04,180.53,180.49,118.64]
[1753863131071,8.5797,180.53,180.49,124.1806]
[1753863131267,3.04,180.52,180.49,124.1806]
[1753863132074,3.04,180.52,180.5,5.5404]
[1753863132572,2.72721375,180.51,180.43,2.72721375]
[1753863132767,3.04,180.48,180.41,2.72721375]
[1753863133068,5.5416,180.47,180.42,5.5428]
[1753863133272,3.04,180.46,180.41,121.38721375]
[1753863133661,5.5422,180.45,180.41,124.2031]
[1753863133875,2.72721375,180.49,180.41,124.2031]
[1753863133876,3.04,180.44,180.41,124.2031]
[1753863134268,3.04,180.43,180.42,5.5429]
[1753863135770,3.04,180.43,180.41,124.2031]
[1753863135970,3.04,180.42,180.41,124.2031]
[1753863136564,3.04,180.42,180.41,118.66]
[1753863137771,3.04,180.42,180.41,124.2032]
[1753863137974,3.04,180.42,180.41,118.66]
[1753863139372,3.04,180.42,180.41,124.2032]
[1753863140078,3.04,180.42,180.4,118.62]
[1753863140276,2.72721375,180.47,180.4,118.62]
[1753863140477,3.04,180.41,180.4,118.62]
[1753863140980,3.04,180.41,180.4,124.1633]
[1753863141671,3.04,180.41,180.4,118.62]
[1753863141878,3.04,180.41,180.37,2.72721375]
[1753863142573,3.04,180.41,180.4,5.5435]
[1753863143779,5.5429,180.42,180.38,118.64]
[1753863143979,3.17,180.41,180.38,118.64]
[1753863144781,5.5434,180.41,180.38,124.1839]
[1753863144981,3.17,180.4,180.38,118.64]
[1753863145278,3.17,180.4,180.35,3.45971372]
[1753863145480,3.17,180.42,180.36,5.5447]
[1753863145674,3.17,180.4,180.35,3.45971372]
[1753863146081,8.7138,180.4,180.35,3.45971372]
[1753863146295,3.17,180.39,180.35,3.45971372]
[1753863147795,3.17,180.39,180.36,5.5444]
[1753863147995,3.17,180.39,180.35,3.45971372]
[1753863148195,3.17,180.4,180.35,3.45971372]
[1753863148489,2.72721375,180.37,180.35,3.45971372]
[1753863148691,7.35063663,180.36,180.35,0.18971372]
[1753863148893,12.89533663,180.36,180.35,0.18971372]
[1753863150295,7.35063663,180.36,180.35,0.18971372]
[1753863150497,3.17,180.36,180.35,0.18971372]
[1753863150997,7.34706928,180.36,180.35,0.18971372]
[1753863151394,12.89176928,180.36,180.35,0.18971372]
[1753863152197,8.7147,180.36,180.35,0.18971372]
[1753863152700,3.17,180.36,180.35,0.18971372]
[1753863153794,8.7147,180.36,180.35,0.18971372]
[1753863155590,3.17,180.33,180.29,3.03]
[1753863155795,3.17,180.36,180.3,3.03]
[1753863155995,5.5459,180.33,180.3,3.03]
[1753863156295,3.17,180.32,180.24,3.03]
[1753863156498,3.17,180.32,180.25,3.03]
[1753863156902,3.17,180.31,180.29,3.03]
[1753863157090,3.17,180.31,180.25,2.72721375]
[1753863157294,8.7165,180.31,180.28,3.03]
[1753863157493,3.17,180.3,180.26,5.5476]
[1753863157701,3.17,180.32,180.26,3.03]
[1753863157899,5.5468,180.3,180.26,8.5778]
[1753863158099,3.17,180.29,180.26,8.5778]
[1753863158301,3.17,180.28,180.27,3.03]
[1753863158494,3.17,180.29,180.24,3.03]
[1753863158999,5.5468,180.3,180.24,3.03]
[1753863159406,8.7168,180.3,180.24,3.03]
[1753863159804,3.17,180.28,180.24,3.03]
[1753863160101,3.17,180.32,180.28,5.547]
[1753863160302,3.17,180.32,180.26,3.03]
[1753863160695,2.72721375,180.35,180.29,5.5466]
[1753863160901,3.17,180.31,180.29,8.5766]
[1753863161207,5.5452,180.35,180.29,2.72721375]
[1753863161396,3.17,180.36,180.31,3.03]
[1753863161601,3.17,180.36,180.32,3.03]
[1753863161902,3.17,180.36,180.28,3.03]
[1753863162202,3.17,180.34,180.27,121.54721375]
[1753863162407,3.17,180.34,180.27,127.09441375]
[1753863162703,3.17,180.32,180.26,3.03]
[1753863162901,3.17,180.28,180.26,3.03]
[1753863163494,3.17,180.3,180.27,8.5773]
[1753863163699,3.17,180.3,180.27,3.03]
[1753863164705,3.17,180.27,180.26,3.03]
[1753863165203,3.17,180.27,180.14,11.1025]
[1753863165204,3.17,180.25,180.24,3.03]
[1753863165599,3.17,180.25,180.24,8.5784]
[1753863166509,3.17,180.25,180.24,3.03]
[1753863167196,3.17,180.25,180.24,8.5784]
[1753863167396,3.17,180.25,180.23,3.03]
[1753863167595,3.17,180.27,180.21,121.89]
[1753863167802,3.17,180.27,180.2,2.72721375]
[1753863167803,2.72721375,180.26,180.18,5.75721375]
[1753863168102,3.17,180.21,180.14,2.72721375]
[1753863168305,3.17,180.21,180.13,8.5817]
[1753863168517,3.17,180.21,180.13,3.03]
[1753863168699,3.17,180.19,180.13,3.03]
[1753863169199,3.17,180.19,180.06,0.96614334]
[1753863169400,2.72721375,180.17,180.11,3.03]
[1753863169598,3.17,180.15,180.11,3.03]
[1753863170303,2.72721375,180.21,180.13,2.72721375]
[1753863170608,3.17,180.19,180.18,3.03]
[1753863170805,3.17,180.18,180.11,8.27941375]
[1753863171004,3.17,180.16,180.11,3.03]
[1753863171198,5.5514,180.15,180.12,3.03]
[1753863171403,5.5514,180.15,180.1,5.5525]
[1753863171701,3.18,180.16,180.11,2.72721375]
[1753863171905,2.72721375,180.27,180.08,119.24]
[1753863171906,2.72721375,180.21,180.16,8.6809]
[1753863172107,3.18,180.19,180.17,3.13]
[1753863172308,5.5499,180.2,180.17,3.13]
[1753863172510,3.18,180.18,180.17,3.13]
[1753863172706,2.72721375,180.2,180.13,2.72721375]
[1753863172902,3.18,180.17,180.11,5.85721375]
[1753863173108,3.18,180.17,180.12,3.13]
[1753863173308,3.18,180.16,180.12,3.13]
[1753863173504,3.18,180.16,180.14,3.13]
[1753863173702,3.18,180.14,180.1,2.72721375]
[1753863173908,2.72721375,180.18,180.11,3.13]
[1753863174110,3.18,180.17,180.11,3.13]
[1753863174312,5.90721375,180.17,180.1,3.13]
[1753863174615,5.5514,180.15,180.1,8.6825]
[1753863174808,3.18,180.13,180.1,5.5525]
[1753863175004,3.18,180.14,180.1,3.13]
[1753863175201,8.7318,180.14,180.1,3.13]
[1753863175411,3.18,180.16,180.1,3.13]
[1753863176108,3.18,180.15,180.12,3.13]
[1753863176315,3.18,180.15,180.09,3.13]
[1753863176810,3.18,180.14,180.1,8.6825]
[1753863177109,3.18,180.16,180.03,3.13]
[1753863177314,4.57170229,180.22,180.09,5.5528]
[1753863177513,3.18,180.15,180.11,3.13]
[1753863177809,3.18,180.15,180.09,2.72721375]
[1753863178013,4.57170229,180.22,180.0,123.0335583]
[1753863178014,3.18,180.17,180.12,3.13]
[1753863178212,3.18,180.17,180.0,3.6935583]
[1753863178508,3.18,180.15,180.08,3.13]
[1753863178701,4.72028362,180.14,180.08,3.13]
[1753863178905,3.18,180.12,180.09,5.553]
[1753863179105,3.18,180.15,180.09,8.683]
[1753863179302,3.18,180.15,180.09,3.13]
[1753863179510,3.18,180.17,180.1,3.13]
[1753863179707,3.18,180.15,180.1,3.13]
[1753863179908,3.18,180.14,180.1,3.13]
[1753863180211,3.18,180.17,180.13,2.72721375]
[1753863180412,3.18,180.16,180.15,3.13]
[1753863180718,3.18,180.2,180.16,3.13]
[1753863181010,2.72721375,180.17,180.11,5.5524]
[1753863181210,3.18,180.16,180.11,8.6824]
[1753863181408,3.18,180.15,180.11,3.13]
[1753863181609,3.18,180.16,180.09,11.41021375]
[1753863181906,3.18,180.14,180.09,11.41021375]
[1753863182206,3.18,180.14,180.1,3.13]
[1753863182411,2.72721375,180.17,180.11,3.13]
[1753863182611,3.18,180.12,180.09,2.72721375]
[1753863182814,3.18,180.11,180.1,3.13]
[1753863183115,3.18,180.11,180.1,8.6827]
[1753863183409,3.18,180.13,180.1,3.13]
[1753863183615,4.52427302,180.23,180.08,2.72721375]
[1753863183812,3.18,180.12,180.11,3.13]
[1753863184109,5.5515,180.14,180.11,3.13]
[1753863184312,2.72721375,180.17,180.09,3.13]
[1753863184513,3.18,180.15,180.1,2.72721375]
[1753863184712,3.18,180.15,180.11,3.13]
[1753863184909,3.18,180.19,180.05,3.13]
[1753863185215,3.18,180.17,180.1,2.72721375]
[1753863185412,3.18,180.15,180.1,2.72721375]
[1753863185615,3.18,180.14,180.12,3.13]
[1753863185816,3.18,180.13,180.12,3.13]
[1753863186117,3.18,180.13,180.12,8.6821]
[1753863186516,2.72721375,180.18,180.12,8.6821]
[1753863186517,3.18,180.17,180.12,3.13]
[1753863186718,3.18,180.14,180.12,3.13]
[1753863186917,2.72721375,180.18,180.12,3.13]
[1753863187214,3.18,180.16,180.1,5.85721375]
[1753863187414,4.72704813,180.15,180.13,5.5517]
[1753863187614,2.72721375,180.18,180.13,5.5517]
[1753863187816,4.72797961,180.17,180.13,5.5517]
[1753863188016,4.72797961,180.16,180.12,2.72721375]
[1753863188221,3.18,180.19,180.13,3.13]
[1753863188411,4.73019193,180.18,180.14,3.13]
[1753863188614,4.73019193,180.17,180.14,2.72721375]
[1753863188816,3.18,180.17,180.16,3.13]
[1753863189219,3.18,180.17,180.14,5.85721375]
[1753863189416,3.18,180.17,180.15,3.13]
[1753863189720,3.18,180.2,180.14,2.72721375]
[1753863190020,3.18,180.18,180.14,3.13]
[1753863190208,3.18,180.16,180.12,2.72721375]
[1753863190414,3.18,180.14,180.12,2.72721375]
[1753863190619,3.18,180.13,180.1,2.72721375]
[1753863190813,3.18,180.12,180.11,3.13]
[1753863191209,2.72721375,180.17,180.1,2.72721375]
[1753863191425,3.18,180.1,180.09,3.13]
[1753863191721,3.18,180.1,180.08,2.72721375]
[1753863191923,3.18,180.1,180.08,3.13]
[1753863192119,3.18,180.14,180.08,3.13]
[1753863192821,3.18,180.12,180.05,3.13]
[1753863193020,3.18,180.12,180.04,123.72350756]
[1753863193021,3.18,180.16,180.08,5.85721375]
[1753863193216,3.18,180.14,180.08,5.85721375]
[1753863193417,3.18,180.12,180.08,2.72721375]
[1753863193616,3.18,180.13,180.11,3.13]
[1753863193812,3.18,180.15,180.13,5.5515]
[1753863194028,3.18,180.15,180.14,3.13]
[1753863194317,3.18,180.14,180.12,3.13]
[1753863194521,3.18,180.13,180.12,3.13]
[1753863194724,2.72721375,180.17,180.08,2.72721375]
[1753863194913,3.18,180.1,180.09,8.683]
[1753863195224,5.90721375,180.13,180.04,3.50350756]
[1753863195519,3.18,180.12,180.07,5.5534]
[1753863195820,2.72721375,180.14,180.08,3.13]
[1753863196022,3.18,180.12,180.1,8.6824]
[1753863196221,3.18,180.11,180.1,8.6824]
[1753863196426,2.72721375,180.16,180.1,3.13]
[1753863196719,3.18,180.14,180.13,3.13]
[1753863197021,3.18,180.16,180.14,8.6812]
[1753863197231,3.18,180.18,180.14,3.13]
[1753863197423,3.18,180.16,180.14,3.13]
[1753863197625,2.72721375,180.21,180.12,5.85721375]
[1753863197823,3.18,180.19,180.12,5.85721375]
[1753863198125,3.18,180.17,180.13,8.6817]
[1753863198528,3.18,180.16,180.12,2.72721375]
[1753863198727,3.18,180.17,180.13,3.13]
[1753863199322,3.18,180.16,180.15,5.5512]
[1753863199628,3.18,180.16,180.1,3.13]
[1753863199929,3.18,180.16,180.13,5.5517]
[1753863200328,3.18,180.16,180.14,3.13]
[1753863200623,4.52427302,180.24,180.14,3.13]
[1753863200824,3.18,180.15,180.14,3.13]
[1753863201025,3.18,180.15,180.14,8.6813]
[1753863201619,2.72721375,180.2,180.11,2.72721375]
[1753863201620,5.5502,180.18,180.12,8.652]
[1753863201828,3.03,180.16,180.12,8.652]
[1753863202029,3.03,180.16,180.12,3.1]
[1753863202231,3.03,180.16,180.13,5.5518]
[1753863203031,3.03,180.16,180.12,8.652]
[1753863203220,3.03,180.16,180.09,2.72721375]
[1753863203424,3.03,180.16,180.09,5.82721375]
[1753863203822,3.03,180.14,180.1,3.1]
[1753863204328,3.03,180.14,180.09,5.82721375]
[1753863204527,3.03,180.14,180.1,3.1]
[1753863204728,3.03,180.17,180.11,2.72721375]
[1753863205231,3.03,180.17,180.14,3.1]
[1753863205632,3.03,180.17,180.13,8.6517]
[1753863205825,3.03,180.17,180.13,3.1]
[1753863207134,3.03,180.17,180.14,5.5514]
[1753863209528,3.03,180.17,180.14,8.6514]
[1753863209931,5.5506,180.17,180.14,8.6514]
[1753863210134,3.03,180.16,180.14,8.6514]
[1753863210329,3.03,180.16,180.14,5.5514]
[1753863210531,3.03,180.16,180.13,5.5517]
[1753863210733,3.03,180.16,180.13,8.6517]
[1753863210930,3.03,180.15,180.13,8.6517]
[1753863211133,3.03,180.14,180.13,8.6517]
[1753863211632,3.03,180.14,180.13,5.5517]
[1753863211929,5.5502,180.19,180.14,5.5512]
[1753863212131,3.03,180.17,180.04,3.50350756]
[1753863212429,3.03,180.14,180.12,2.72721375]
[1753863212734,3.03,180.14,180.11,5.5523]
[1753863213530,5.5509,180.16,180.11,5.5523]
[1753863213731,3.03,180.14,180.1,2.72721375]
[1753863214036,3.03,180.14,180.1,5.82721375]
[1753863214335,5.5512,180.15,180.11,5.5521]
[1753863214536,3.03,180.13,180.08,3.1]
[1753863214740,8.582,180.13,180.08,8.6531]
[1753863214938,3.03,180.12,180.08,8.6531]
[1753863215139,3.03,180.11,180.08,8.6531]
[1753863215439,3.03,180.11,180.07,11.38071375]
[1753863215839,4.18173375,180.1,180.05,11.38141375]
[1753863216035,3.03,180.11,180.05,11.38141375]
[1753863216336,3.03,180.09,180.06,8.6537]
[1753863216741,3.03,180.09,180.06,3.1]
[1753863216942,3.03,180.08,180.06,3.1]
[1753863217136,3.03,180.08,180.07,5.5536]
[1753863217340,3.03,180.07,180.05,2.72721375]
[1753863217543,0.25228501,180.06,180.05,2.72721375]
[1753863217744,2.72721375,180.12,180.05,2.72721375]
[1753863218039,4.17984792,180.11,180.06,3.1]
[1753863218239,4.17945354,180.1,180.04,6.60350756]
[1753863218541,8.91490006,180.09,180.05,3.1]
[1753863218736,9.73158451,180.08,180.05,3.1]
[1753863218933,5.5534,180.08,180.06,4.55423451]
[1753863219137,5.5534,180.08,180.07,4.55423451]
[1753863219343,5.5531,180.09,180.07,4.55423451]
[1753863219543,8.5831,180.09,180.08,4.55423451]
[1753863219739,7.20515585,180.09,180.08,4.55423451]
[1753863220042,3.03,180.07,180.06,3.1]
[1753863220644,5.553,180.09,180.04,9.05800756]
[1753863220845,3.03,180.06,180.05,3.1]
[1753863221147,3.03,180.06,180.05,8.6542]
[1753863223146,3.03,180.09,180.06,8.6538]
[1753863223344,2.72721375,180.11,180.04,3.50350756]
[1753863223649,3.03,180.12,180.04,6.23072131]
[1753863223836,3.03,180.12,180.07,3.1]
[1753863224041,3.03,180.11,180.07,3.1]
[1753863224241,3.03,180.11,180.1,3.1]
[1753863224544,3.03,180.12,180.11,3.1]
[1753863224944,3.03,180.13,180.12,3.1]
[1753863225143,3.03,180.13,180.1,8.6525]
[1753863225345,2.72721375,180.12,180.04,3.50350756]
[1753863225548,3.03,180.09,180.06,3.1]
[1753863226245,8.5832,180.09,180.06,3.1]
[1753863226436,3.03,180.08,180.04,6.60350756]
[1753863226638,3.03,180.08,180.05,3.1]
[1753863227349,2.72721375,180.1,180.04,3.50350756]
[1753863227350,3.03,180.09,180.04,3.50350756]
[1753863227844,3.03,180.09,180.05,3.1]
[1753863228247,5.5531,180.09,180.05,8.6542]
[1753863228451,3.03,180.09,180.05,3.1]
[1753863228951,5.5533,180.08,180.05,3.1]
[1753863229145,3.03,180.06,180.05,3.1]
[1753863229537,3.03,180.06,180.05,8.6542]
[1753863230744,3.03,180.06,180.05,3.1]
[1753863231542,3.03,180.06,180.04,3.50350756]
[1753863231742,3.21,180.09,180.05,2.98]
[1753863232151,5.5536,180.08,180.05,2.98]
[1753863232348,3.21,180.07,180.05,2.98]
[1753863232551,2.72721375,180.1,180.05,2.98]
[1753863232854,3.21,180.06,180.05,8.5342]
[1753863233046,3.21,180.06,180.05,2.98]
[1753863233241,2.72721375,180.09,180.06,2.98]
[1753863233444,2.72721375,180.11,180.04,3.50350756]
[1753863233653,3.21,180.09,180.05,2.98]
[1753863233847,3.21,180.08,180.05,2.98]
[1753863234052,3.21,180.08,180.07,2.98]
[1753863234245,2.72721375,180.11,180.07,2.98]
[1753863234446,3.21,180.09,180.08,2.98]
[1753863234646,3.21,180.09,180.05,2.98]
[1753863234850,3.21,180.09,180.06,2.98]
[1753863235048,3.21,180.08,180.07,2.98]
[1753863237857,3.21,180.08,180.05,8.534]
[1753863238055,3.21,180.08,180.06,2.98]
[1753863238458,3.21,180.07,180.06,8.5339]
[1753863239158,3.21,180.07,180.06,2.98]
[1753863239854,3.21,180.07,180.06,8.5339]
[1753863241657,5.5528,180.1,180.07,5.5534]
[1753863241954,2.72721375,180.18,180.06,2.98]
[1753863241955,3.21,180.13,180.06,2.98]
[1753863242352,5.5519,180.13,180.09,5.5529]
[1753863242548,3.21,180.11,180.05,2.98]
[1753863242749,3.21,180.11,180.09,5.5529]
[1753863242956,3.21,180.11,180.1,2.98]
[1753863243353,7.30509321,180.18,180.1,2.98]
[1753863243354,2.72721375,180.16,180.1,2.98]
[1753863243548,7.37037273,180.15,180.1,2.98]
[1753863243749,3.21,180.13,180.1,2.98]
[1753863243956,3.21,180.13,180.06,2.98]
[1753863244156,3.21,180.11,180.06,2.98]
[1753863244352,8.7626,180.11,180.07,5.5534]
[1753863244560,8.7626,180.11,180.07,8.5334]
[1753863244561,3.21,180.1,180.07,8.5334]
[1753863244754,2.72721375,180.12,180.04,126.86350756]
[1753863244959,2.72721375,180.14,180.09,8.5327]
[1753863245166,2.72721375,180.14,180.1,2.98]
[1753863245365,3.21,180.13,180.06,2.98]
[1753863245662,3.21,180.12,180.07,2.72721375]
[1753863245863,3.21,180.11,180.08,2.98]
[1753863246062,3.21,180.1,180.08,2.98]
[1753863246265,3.21,180.1,180.09,8.5327]
[1753863246763,8.27881375,180.14,180.11,5.5524]
[1753863246965,3.21,180.12,180.11,8.5324]
[1753863247163,3.21,180.12,180.11,2.98]
[1753863247661,3.21,180.12,180.11,8.5324]
[1753863248665,2.72721375,180.16,180.12,5.552]
[1753863248966,3.21,180.14,180.13,2.98]
[1753863249961,8.27811375,180.16,180.13,2.98]
[1753863250162,3.21,180.15,180.09,2.98]
[1753863250760,3.21,180.14,180.09,2.98]
[1753863251260,3.21,180.14,180.12,2.98]
[1753863251460,2.72721375,180.16,180.12,2.98]
[1753863251461,3.21,180.13,180.12,2.98]
[1753863251662,5.93721375,180.16,180.12,2.98]
[1753863251959,3.21,180.17,180.14,2.98]
[1753863252464,3.21,180.15,180.14,2.98]
[1753863252656,5.93721375,180.18,180.14,2.98]
[1753863252864,3.21,180.16,180.15,2.98]
[1753863253064,7.37788093,180.16,180.15,2.98]
[1753863253366,3.21,180.15,180.14,2.98]
[1753863253858,2.72721375,180.18,180.13,5.5515]
[1753863254061,3.21,180.14,180.13,8.5315]
[1753863254564,3.21,180.14,180.13,2.98]
[1753863254866,3.21,180.14,180.08,2.72721375]
[1753863255066,3.21,180.15,180.1,2.98]
[1753863255266,3.21,180.15,180.11,2.98]
[1753863255565,3.21,180.13,180.11,2.98]
[1753863255966,3.21,180.12,180.11,2.98]
[1753863256171,3.21,180.12,180.11,8.5324]
[1753863256366,3.21,180.14,180.11,2.98]
[1753863256673,3.21,180.13,180.12,5.5521]
[1753863256972,3.21,180.13,180.12,8.5321]
[1753863257666,3.21,180.13,180.12,2.98]